fUSD/lending_fUSD_20260318
["ID","MTS","AMOUNT","RATE_DAILY","PERIOD"]
[408541909,1773869450057,-1011.36949615,0.00015582,2]
[408541910,1773869450066,-1031.97800614,0.00015582,2]
[408541911,1773869450075,-1086.60245774,0.00015582,2]
[408541912,1773869450085,-1128.71302822,0.00015582,2]
[408541913,1773869450095,-1125.68918019,0.00015582,2]
[408541914,1773869450105,-1025.07063189,0.00015582,2]
[408541915,1773869450114,-273.84,0.00015589,2]
[408541916,1773869450124,-350.0,0.00015591,2]
[408541917,1773869450133,-1500.0,0.00015599,2]
[408541918,1773869450142,-1500.0,0.00015599,2]
[408541919,1773869450152,-700.0,0.000156,5]
[408541920,1773869450162,-500.0,0.00015614,2]
[408541921,1773869450171,-151.0,0.00015614,2]
[408541922,1773869450180,-1000.0,0.0001564,2]
[408541923,1773869450189,-500.0,0.0001564,2]
[408541924,1773869450198,-501.5837571,0.0001564,2]
[408541925,1773869450208,-1000.0,0.0001564,2]
[408541926,1773869450217,-1000.0,0.0001564,2]
[408541927,1773869450226,-1003.9759302,0.0001564,2]
[408541928,1773869450235,-20414.96798754,0.00015651,2]
[408541929,1773869450244,-167.93,0.00015654,2]
[408541930,1773869450253,-1000.0,0.00015656,2]
[408541931,1773869450262,-500.0,0.00015669,2]
[408541932,1773869450271,-151.0,0.00015669,2]
[408541933,1773869450280,-1000.0,0.0001567,2]
[408541934,1773869450289,-1000.0,0.00015671,2]
[408541935,1773869450298,-1000.0,0.00015672,2]
[408541936,1773869450308,-1000.0,0.00015676,2]
[408541937,1773869450317,-3225.17330268,0.0001568,2]
[408541938,1773869450326,-1000.0,0.00015682,2]
[408541939,1773869450335,-1000.0,0.00015684,2]
[408541940,1773869450344,-1000.0,0.00015691,2]
[408541941,1773869450353,-700.0,0.000157,5]
[408541942,1773869450362,-1000.0,0.00015721,2]
[408541943,1773869450371,-504.08548638,0.00015721,2]
[408541944,1773869450380,-1004.66915458,0.00015721,2]
[408541945,1773869450390,-151.0,0.00015722,2]
[408541946,1773869450399,-181.08010149,0.00015722,2]
[408541947,1773869450408,-200.0,0.00015722,2]
[408541948,1773869450417,-1000.0,0.00015722,2]
[408541949,1773869450426,-500.0,0.00015724,2]
[408541950,1773869450436,-1300.0,0.00015726,2]
[408541951,1773869450446,-1000.0,0.00015732,2]
[408541952,1773869450456,-1000.0,0.00015733,2]
[408541953,1773869450465,-1000.0,0.00015735,2]
[408541954,1773869450474,-1000.0,0.00015738,2]
[408541955,1773869450483,-543.0,0.0001574,2]
[408541956,1773869450493,-1000.0,0.00015755,2]
[408541957,1773869450501,-1000.0,0.00015759,2]
[408541958,1773869450510,-1000.0,0.00015759,2]
[408541959,1773869450519,-1000.0,0.00015762,2]
[408541960,1773869450528,-1000.0,0.00015767,2]
[408541961,1773869450536,-1000.0,0.0001577,2]
[408541962,1773869450546,-350.0,0.00015775,2]
[408541963,1773869450556,-500.0,0.00015779,2]
[408541964,1773869450565,-350.0,0.00015779,2]
[408541965,1773869450574,-979.16666667,0.00015783,2]
[408541966,1773869450583,-1000.0,0.00015785,2]
[408541967,1773869450591,-2924.2307,0.000158,2]
[408541968,1773869450600,-700.0,0.000158,5]
[408541969,1773869450609,-375.28,0.000158,2]
[408541970,1773869450618,-2254.14799987,0.00015807,2]
[408541971,1773869450627,-1000.0,0.00015814,2]
[408541972,1773869450636,-1000.0,0.00015825,2]
[408541973,1773869450645,-574.58268553,0.0001583,2]
[408541974,1773869450653,-500.0,0.00015834,2]
[408541975,1773869450662,-1000.0,0.00015834,2]
[408541976,1773869450672,-47743.06976617,0.0001584,2]
[408541977,1773869450681,-426.46402275,0.0001584,2]
[408541978,1773869450690,-395.80235,0.0001584,2]
[408541979,1773869450699,-395.80235,0.0001584,2]
[408541980,1773869450712,-1000.0,0.00015841,2]
[408541981,1773869450721,-151.0,0.00015841,2]
[408541982,1773869450730,-915.001212,0.00015841,2]
[408541983,1773869450739,-915.001212,0.00015841,2]
[408541984,1773869450747,-915.001212,0.00015841,2]
[408541985,1773869450757,-915.001212,0.00015841,2]
[408541986,1773869450767,-151.0,0.00015841,2]
[408541987,1773869450776,-151.0,0.00015841,2]
[408541988,1773869450784,-151.0,0.00015841,2]
[408541989,1773869450793,-160.29424,0.00015841,2]
[408541990,1773869450803,-1000.0,0.00015843,2]
[408541991,1773869450812,-395.80235,0.0001585,2]
[408541992,1773869450821,-2861.0,0.00015867,5]
[408541993,1773869450830,-2291.0,0.00015867,5]
[408541994,1773869450840,-341.11224002,0.00015867,2]
[408541995,1773869450848,-1000.0,0.00015869,2]
[408541996,1773869450858,-200.0,0.00015872,2]
[408541997,1773869450866,-1000.0,0.00015875,2]
[408541998,1773869450876,-996.5,0.00015877,2]
[408541999,1773869450885,-1260.0,0.00015886,2]
[408542000,1773869450894,-927.389,0.00015886,2]
[408542001,1773869450903,-1215.0,0.00015886,2]
[408542002,1773869450912,-1344.0,0.00015886,2]
[408542003,1773869450921,-620.0,0.00015886,2]
[408542004,1773869450930,-6005.0,0.00015886,2]
[408542005,1773869450940,-543.0,0.00015887,2]
[408542006,1773869450948,-250.0,0.0001589,2]
[408542007,1773869450958,-2000.0,0.0001589,2]
[408542008,1773869450968,-3628.48,0.00015895,2]
[408542009,1773869450977,-153.13141231,0.000159,2]
[408542010,1773869450987,-316.97510856,0.000159,2]
[408542011,1773869451000,-1338.0,0.000159,5]
[408542012,1773869451009,-1268.73580959,0.000159,2]
[408542013,1773869451018,-1353.30323767,0.000159,2]
[408542014,1773869451027,-20414.96798754,0.000159,2]
[408542015,1773869451036,-3508.1881505,0.000159,2]
[408542016,1773869451045,-17502.01193699,0.000159,2]
[408542017,1773869451054,-184.95305946,0.000159,2]
[408542018,1773869451064,-1000.0,0.00015903,2]
[408542019,1773869451073,-543.0,0.00015906,2]
[408542020,1773869451082,-1000.0,0.0001591,2]
[408542021,1773869451091,-258.22603243,0.00015919,2]
[408542022,1773869451100,-169.29953085,0.0001592,2]
[408542023,1773869451109,-1500.0,0.00015921,2]
[408542024,1773869451118,-273.219091,0.00015948,2]
[408542025,1773869451127,-543.0,0.00015956,2]
[408542026,1773869451136,-1894.6031859,0.00015956,2]
[408542027,1773869451145,-5000.0,0.0001596,2]
[408542028,1773869451154,-500.0,0.00015972,2]
[408542029,1773869451163,-500.0,0.00015973,2]
[408542030,1773869451173,-164.62600278,0.00015973,2]
[408542031,1773869451182,-161.50794753,0.00015973,2]
[408542032,1773869451191,-500.0,0.00015973,2]
[408542033,1773869451201,-500.0,0.00015973,2]
[408542034,1773869451211,-160.12298016,0.00015973,2]
[408542035,1773869451220,-500.0,0.00015973,2]
[408542036,1773869451229,-500.0,0.00015973,2]
[408542037,1773869451238,-500.0,0.00015973,2]
[408542038,1773869451247,-500.0,0.00015973,2]
[408542039,1773869451255,-500.0,0.00015973,2]
[408542040,1773869451265,-500.0,0.00015973,2]
[408542041,1773869451275,-500.0,0.00015973,2]
[408542042,1773869451285,-164.64896361,0.00015973,2]
[408542043,1773869451294,-500.0,0.00015973,2]
[408542044,1773869451304,-500.0,0.00015973,2]
[408542045,1773869451315,-500.0,0.00015973,2]
[408542046,1773869451324,-500.0,0.00015973,2]
[408542047,1773869451333,-500.0,0.00015973,2]
[408542048,1773869451342,-160.048,0.00015973,2]
[408542049,1773869451351,-191.09594132,0.00015973,2]
[408542050,1773869451360,-500.0,0.00015973,2]
[408542051,1773869451369,-500.0,0.00015973,2]
[408542052,1773869451378,-166.41691617,0.00015973,2]
[408542053,1773869451391,-500.42157714,0.00015973,2]
[408542054,1773869451401,-500.0,0.00015973,2]
[408542055,1773869451410,-500.0,0.00015973,2]
[408542056,1773869451419,-500.0,0.00015973,2]
[408542057,1773869451428,-408.69846994,0.00015973,2]
[408542058,1773869451437,-500.0,0.00015973,2]
[408542059,1773869451447,-500.0,0.00015973,2]
[408542060,1773869451456,-500.0,0.00015973,2]
[408542061,1773869451465,-543.0,0.00015987,2]
[408542062,1773869451474,-574.58268553,0.0001599,2]
[408542063,1773869451483,-574.58268553,0.0001599,2]
[408542064,1773869451492,-1500.0,0.00015991,2]
[408542065,1773869451500,-1004.05893461,0.00015991,2]
[408542066,1773869451510,-151.0,0.00015991,2]
[408542067,1773869451519,-151.0,0.00015991,2]
[408542068,1773869451528,-296.0,0.00015994,2]
[408542069,1773869451678,-45461.85245378,0.00015999,7]
[408542070,1773869451688,-367.03327602,0.00015999,2]
[408542071,1773869451696,-500.0,0.00015999,2]
[408542072,1773869451705,-500.0,0.00015999,2]
[408542073,1773869451714,-591.08999128,0.00015999,2]
[408542074,1773869451723,-151.0,0.00015999,2]
[408542075,1773869451734,-1108606.48055375,0.00016,2]
[408542076,1773869452920,-159.07257344,0.00013848,2]
[408542077,1773869452930,-245.28937295,0.00013848,2]
[408542078,1773869452939,-272.15330685,0.00013848,2]
[408542079,1773869452949,-156.51926097,0.00013848,2]
[408542080,1773869452958,-166.96548579,0.00013848,2]
[408542081,1773869452970,-333.03451421,0.00013848,2]
[408542082,1773869452979,-161.38286706,0.00013848,2]
[408542083,1773869452991,-338.61713294,0.00013848,2]
[408542084,1773869453002,-500.0,0.00013848,2]
[408542085,1773869453012,-500.0,0.00013848,2]
[408542086,1773869453021,-500.0,0.00013848,2]
[408542087,1773869453031,-500.0,0.00013848,2]
[408542088,1773869453040,-500.0,0.00013848,2]
[408542089,1773869453050,-500.0,0.00013848,2]
[408542090,1773869453059,-500.0,0.00013848,2]
[408542091,1773869453068,-291.24237786,0.00013848,2]
[408542092,1773869453077,-500.0,0.00013848,2]
[408542093,1773869453087,-500.0,0.00013848,2]
[408542094,1773869453097,-79.49938611,0.00013848,2]
[408542095,1773869453108,-420.50061389,0.00013848,2]
[408542096,1773869453118,-500.0,0.00013848,2]
[408542097,1773869453127,-500.0,0.00013848,2]
[408542098,1773869453136,-227.27934909,0.00013848,2]
[408542099,1773869453148,-272.72065091,0.00013848,2]
[408542100,1773869453158,-500.0,0.00013848,2]
[408542101,1773869453167,-500.0,0.00013848,2]
[408542102,1773869453177,-500.0,0.00013848,2]
[408542103,1773869453186,-500.0,0.00013848,2]
[408542104,1773869453195,-500.0,0.00013848,2]
[408542105,1773869453205,-500.0,0.00013848,2]
[408542106,1773869453214,-500.0,0.00013848,2]
[408542107,1773869453224,-958079.85598709,0.00016,2]
[408542108,1773869453239,-517.94027899,0.00016,2]
[408542109,1773869453261,-9266.39207549,0.00016,2]
[408542110,1773869453282,-17389.65097506,0.00016,2]
[408542111,1773869483089,150.0,0.00021806,120]
[408542112,1773869483832,150.0,0.00023137,120]
[408542113,1773869483917,150.0,0.00024468,120]
[408542114,1773869484254,150.0,0.00025799,120]
[408542115,1773869484653,150.0,0.0002713,120]
[408542116,1773869485007,155.56,0.00028461,120]
[408542117,1773869485387,181.49,0.00029792,120]
[408542118,1773869511804,150.0,0.00021801,120]
[408542119,1773869512157,150.0,0.00023132,120]
[408542120,1773869512513,150.0,0.00024463,120]
[408542121,1773869512906,150.0,0.00025793,120]
[408542122,1773869513260,150.0,0.00027124,120]
[408542123,1773869513720,150.0,0.00028454,120]
[408542124,1773869541725,150.0,0.00021798,120]
[408542125,1773869542100,150.0,0.00023128,120]
[408542126,1773869542474,150.0,0.00024459,120]
[408542127,1773869586985,623.35,0.000161,120]
[408542128,1773869591349,150.0,0.00021801,120]
[408542129,1773869591699,150.0,0.00023132,120]
[408542130,1773869594263,567.864423,0.00028209,120]
[408542131,1773869613175,316.41632228,0.00029041,120]
[408542132,1773869640667,150.0,0.00021856,120]
[408542133,1773869663789,150.0,0.0002185,120]
[408542134,1773869774974,561.02,0.000161,120]
[408542136,1773869964456,504.91,0.000161,120]
[408542137,1773869976433,100000.0,0.00030137,120]
[408542138,1773870000690,225.73961315,0.00018992,120]
[408542139,1773870154078,454.42,0.000161,120]
[408542140,1773870187389,2233.41,0.00030137,120]
[408542142,1773870306123,1000.0,0.00030137,120]
[408542143,1773870344150,408.98,0.000161,120]
[408542144,1773870351159,1000.0,0.00030137,120]
[408542145,1773870395346,1000.0,0.00030137,120]
[408542146,1773870436462,902.81731487,0.00030137,120]
[408542147,1773870532885,368.08,0.000161,120]
[408542148,1773870545125,-158.1,0.00011323,2]
[408542149,1773870545149,-1200.0,0.00011888,2]
[408542150,1773870545172,-300.0,0.00011888,2]
[408542151,1773870545193,-300.0,0.00011888,2]
[408542152,1773870545212,-2766.734702,0.00011889,2]
[408542158,1773870632201,-193.0,0.00013051,2]
[408542159,1773870632211,-5000.0,0.00013209,2]
[408542160,1773870632220,-250.0,0.00013209,2]
[408542161,1773870632230,-150.0,0.00013367,2]
[408542162,1773870632239,-682.60142382,0.00013455,2]
[408542163,1773870632251,-3423.01379127,0.00013455,2]
[408542164,1773870632260,-250.0,0.00013455,2]
[408542165,1773870632272,-296.38,0.00013462,2]
[408542166,1773870632282,-150.0,0.00013697,2]
[408542167,1773870632292,-1200.0,0.00013697,2]
[408542168,1773870632301,-500.0,0.00013698,2]
[408542169,1773870632312,-500.0,0.00013698,2]
[408542170,1773870632322,-500.0,0.00013698,2]
[408542171,1773870632332,-500.0,0.00013698,2]
[408542172,1773870632343,-505.60652917,0.00013698,2]
[408542173,1773870632353,-3001.37,0.00013699,2]
[408542174,1773870632362,-200.0,0.000137,5]
[408542175,1773870632371,-500.0,0.00013762,2]
[408542176,1773870632380,-500.0,0.00013762,2]
[408542177,1773870632390,-500.0,0.00013762,2]
[408542178,1773870632399,-507.84,0.00013762,2]
[408542179,1773870632408,-500.0,0.00013762,2]
[408542180,1773870632417,-591.08999128,0.00013762,2]
[408542181,1773870632426,-400.0,0.000138,5]
[408542182,1773870632436,-600.0,0.000139,5]
[408542184,1773870632445,-700.0,0.00014082,2]
[408542186,1773870632454,-1800.0,0.00014082,2]
[408542188,1773870632464,-1500.0,0.00014082,2]
[408542190,1773870632473,-4142.2444,0.00014273,2]
[408542192,1773870632483,-51632.0141,0.00014273,2]
[408542194,1773870632492,-167.96,0.0001432,2]
[408542196,1773870632503,-1646.6099,0.00014333,2]
[408542198,1773870632512,-600.0,0.00014356,2]
[408542200,1773870632521,-5000.0,0.00014356,2]
[408542202,1773870632530,-250.0,0.00014356,2]
[408542204,1773870632540,-300.0,0.00014356,2]
[408542206,1773870632549,-365.3046169,0.00014356,2]
[408542208,1773870632558,-500.0,0.00014359,2]
[408542210,1773870632567,-500.0,0.00014359,2]
[408542212,1773870632577,-500.0,0.00014359,2]
[408542214,1773870632586,-500.0,0.00014359,2]
[408542216,1773870632595,-550.79970363,0.00014359,2]
[408542218,1773870632605,-500.0,0.00014359,2]
[408542219,1773870632614,-500.0,0.00014359,2]
[408542220,1773870632623,-500.0,0.00014359,2]
[408542221,1773870632633,-150.37503432,0.00014359,2]
[408542222,1773870632643,-500.0,0.00014359,2]
[408542223,1773870632652,-504.32218719,0.00014359,2]
[408542224,1773870632662,-500.0,0.00014359,2]
[408542225,1773870632671,-500.0,0.00014359,2]
[408542226,1773870632680,-500.0,0.00014359,2]
[408542227,1773870632690,-500.0,0.00014359,2]
[408542228,1773870632699,-500.0,0.00014359,2]
[408542229,1773870632709,-219.83224055,0.00014359,2]
[408542230,1773870632719,-500.0,0.00014359,2]
[408542231,1773870632729,-500.0,0.00014359,2]
[408542232,1773870632739,-500.0,0.00014359,2]
[408542233,1773870632749,-500.0,0.00014359,2]
[408542234,1773870632758,-500.0,0.00014359,2]
[408542235,1773870632767,-434.47795526,0.00014359,2]
[408542236,1773870632777,-500.0,0.00014359,2]
[408542237,1773870632786,-500.0,0.00014359,2]
[408542238,1773870632796,-500.0,0.00014359,2]
[408542239,1773870632805,-500.0,0.00014359,2]
[408542240,1773870632816,-500.0,0.00014359,2]
[408542241,1773870632826,-500.0,0.00014359,2]
[408542242,1773870632839,-500.0,0.00014359,2]
[408542243,1773870632848,-500.0,0.00014359,2]
[408542244,1773870632858,-500.0,0.00014359,2]
[408542245,1773870632867,-500.0,0.00014359,2]
[408542246,1773870632877,-542.75626886,0.00014359,2]
[408542247,1773870632886,-500.0,0.00014359,2]
[408542248,1773870632895,-500.0,0.00014359,2]
[408542249,1773870632905,-500.0,0.00014359,2]
[408542250,1773870632914,-500.0,0.00014359,2]
[408542251,1773870632923,-500.0,0.00014359,2]
[408542252,1773870632935,-500.0,0.00014359,2]
[408542253,1773870632944,-500.0,0.00014359,2]
[408542254,1773870632954,-501.02050118,0.00014359,2]
[408542255,1773870632963,-500.0,0.00014359,2]
[408542256,1773870632972,-500.0,0.00014359,2]
[408542257,1773870632982,-500.0,0.00014359,2]
[408542258,1773870632992,-500.0,0.00014359,2]
[408542259,1773870633001,-500.0,0.00014359,2]
[408542260,1773870633011,-500.0,0.00014359,2]
[408542261,1773870633020,-350.0,0.00014359,2]
[408542262,1773870633030,-500.0,0.00014359,2]
[408542263,1773870633041,-150.0,0.00014359,2]
[408542264,1773870633053,-500.0,0.00014359,2]
[408542265,1773870633062,-500.0,0.00014359,2]
[408542266,1773870633072,-500.0,0.00014359,2]
[408542267,1773870633081,-500.0,0.00014359,2]
[408542268,1773870633092,-500.0,0.00014359,2]
[408542269,1773870633102,-150.0,0.00014359,2]
[408542270,1773870633112,-500.0,0.00014359,2]
[408542271,1773870633122,-150.0,0.00014359,2]
[408542272,1773870633132,-418.0,0.00014359,2]
[408542273,1773870633142,-500.0,0.00014359,2]
[408542274,1773870633151,-418.0,0.00014359,2]
[408542275,1773870633161,-500.0,0.00014359,2]
[408542276,1773870633171,-418.0,0.00014359,2]
[408542277,1773870633181,-500.0,0.00014359,2]
[408542278,1773870633192,-418.0,0.00014359,2]
[408542279,1773870633203,-500.0,0.00014359,2]
[408542280,1773870633213,-418.0,0.00014359,2]
[408542281,1773870633222,-500.0,0.00014359,2]
[408542282,1773870633231,-418.0,0.00014359,2]
[408542283,1773870633241,-500.0,0.00014359,2]
[408542284,1773870633251,-418.0,0.00014359,2]
[408542285,1773870633260,-202.15016787,0.00014359,2]
[408542286,1773870633272,-418.0,0.00014359,2]
[408542287,1773870633283,-418.0,0.00014359,2]
[408542288,1773870633292,-279.0889054,0.00014359,2]
[408542289,1773870633302,-418.0,0.00014359,2]
[408542290,1773870633312,-418.0,0.00014359,2]
[408542291,1773870633321,-418.0,0.00014359,2]
[408542292,1773870633332,-418.0,0.00014359,2]
[408542293,1773870633342,-418.0,0.00014359,2]
[408542294,1773870633352,-418.0,0.00014359,2]
[408542295,1773870633362,-418.0,0.00014359,2]
[408542296,1773870633371,-418.0,0.00014359,2]
[408542297,1773870633381,-418.0,0.00014359,2]
[408542298,1773870633392,-418.0,0.00014359,2]
[408542299,1773870633403,-418.0,0.00014359,2]
[408542300,1773870633413,-418.0,0.00014359,2]
[408542301,1773870633423,-418.0,0.00014359,2]
[408542302,1773870633432,-418.0,0.00014359,2]
[408542303,1773870633444,-430.0,0.00014359,2]
[408542304,1773870633453,-6757.10124715,0.00014373,2]
[408542305,1773870633463,-16496.30490938,0.00014373,2]
[408542306,1773870633472,-451.10107923,0.00014373,2]
[408542307,1773870633482,-2895.56323513,0.00014373,2]
[408542308,1773870633491,-3001.37,0.00014384,2]
[408542309,1773870633500,-13478.45093874,0.00014415,2]
[408542310,1773870633511,-401.68,0.00014421,2]
[408542311,1773870633523,-574.58268553,0.00014423,2]
[408542312,1773870633532,-200.0,0.00014424,2]
[408542313,1773870633542,-500.0,0.00014432,2]
[408542314,1773870633551,-500.0,0.00014432,2]
[408542315,1773870633561,-500.0,0.00014432,2]
[408542316,1773870633572,-498.43097472,0.00014432,2]
[408542317,1773870633581,-500.0,0.00014432,2]
[408542318,1773870633595,-500.0,0.00014432,2]
[408542319,1773870633605,-254.58248643,0.00014432,2]
[408542320,1773870633614,-208.64355047,0.00014432,2]
[408542321,1773870633625,-477.16478774,0.00014432,2]
[408542322,1773870633634,-500.0,0.00014432,2]
[408542323,1773870633643,-500.0,0.00014432,2]
[408542324,1773870633653,-500.0,0.00014432,2]
[408542325,1773870633662,-500.0,0.00014432,2]
[408542326,1773870633671,-329.190207,0.00014432,2]
[408542327,1773870633680,-930633.58154409,0.00014433,2]
[408542328,1773870633698,-48383.14326538,0.00014433,2]
[408542329,1773870633710,-132287.79816094,0.00014433,2]
[408542330,1773870633722,-191409.38597397,0.00014433,2]
[408542331,1773870633734,-1254.41808677,0.00014433,2]
[408542332,1773870633749,-1500.0,0.00014433,2]
[408542333,1773870633761,-400.0,0.00014433,2]
[408542334,1773870633771,-583.896,0.00014433,2]
[408542335,1773870633786,-547.77308168,0.00014433,2]
[408542338,1773870638257,-23238.5177287,0.00014433,2]
[408542339,1773870638372,-38705.1093591,0.00014433,2]
[408542342,1773870640404,-346.60316502,0.00014433,2]
[408542343,1773870640415,-634288.97523435,0.00014433,2]
[408542344,1773870640424,-500.96706239,0.00014473,2]
[408542345,1773870640434,-500.0,0.00014473,2]
[408542346,1773870640443,-500.0,0.00014473,2]
[408542347,1773870640452,-388.60866893,0.00014473,2]
[408542348,1773870640462,-500.0,0.00014473,2]
[408542349,1773870640472,-500.0,0.00014473,2]
[408542350,1773870640481,-500.0,0.00014473,2]
[408542351,1773870640491,-369.73783683,0.00014473,2]
[408542352,1773870640500,-500.0,0.00014473,2]
[408542353,1773870640510,-500.0,0.00014473,2]
[408542354,1773870640520,-500.0,0.00014473,2]
[408542355,1773870640529,-500.0,0.00014473,2]
[408542356,1773870640538,-408.69846994,0.00014473,2]
[408542357,1773870640547,-500.0,0.00014473,2]
[408542358,1773870640557,-6166.64458364,0.00014533,2]
[408542359,1773870640566,-6757.10124707,0.00014543,2]
[408542360,1773870640577,-16496.30490937,0.00014543,2]
[408542361,1773870640587,-350.58448698,0.00014551,2]
[408542362,1773870640598,-500.0,0.00014633,2]
[408542363,1773870640609,-6757.10124707,0.00014712,2]
[408542364,1773870640619,-16496.30490937,0.00014712,2]
[408542365,1773870640628,-800.0,0.000148,5]
[408542366,1773870640638,-255.0,0.0001482,2]
[408542367,1773870640647,-6757.10124707,0.00014882,2]
[408542368,1773870640657,-16496.30490937,0.00014882,2]
[408542369,1773870640667,-151.0,0.00014894,2]
[408542370,1773870640677,-500.0,0.00014894,2]
[408542371,1773870640686,-500.0,0.00014894,2]
[408542372,1773870640696,-500.0,0.00014894,2]
[408542373,1773870640705,-500.0,0.00014894,2]
[408542374,1773870640714,-250.0,0.00014894,2]
[408542375,1773870640723,-500.0,0.00014894,2]
[408542376,1773870640733,-500.0,0.00014894,2]
[408542377,1773870640742,-250.0,0.00014894,2]
[408542378,1773870640751,-500.0,0.00014894,2]
[408542379,1773870640762,-250.0,0.00014894,2]
[408542380,1773870640773,-500.0,0.00014894,2]
[408542381,1773870640784,-250.0,0.00014894,2]
[408542382,1773870640795,-250.0,0.00014894,2]
[408542383,1773870640804,-500.0,0.00014894,2]
[408542384,1773870640814,-174.61919141,0.00014894,2]
[408542385,1773870640825,-250.0,0.00014894,2]
[408542386,1773870640835,-500.0,0.00014894,2]
[408542387,1773870640844,-250.0,0.00014894,2]
[408542388,1773870640854,-500.0,0.00014894,2]
[408542389,1773870640864,-200.0,0.00014894,2]
[408542390,1773870640874,-250.0,0.00014894,2]
[408542391,1773870640884,-500.0,0.00014894,2]
[408542392,1773870640893,-250.0,0.00014894,2]
[408542393,1773870640904,-500.0,0.00014894,2]
[408542394,1773870640914,-248.1,0.00014894,2]
[408542395,1773870640925,-500.0,0.00014894,2]
[408542396,1773870640936,-151.0,0.00014894,2]
[408542397,1773870640946,-1000.0,0.000149,5]
[408542398,1773870640956,-167.96,0.00014911,2]
[408542399,1773870640967,-500.0,0.00014949,2]
[408542400,1773870640978,-151.0,0.00014949,2]
[408542401,1773870640988,-200.0,0.00014972,2]
[408542402,1773870640997,-250.0,0.00015,2]
[408542403,1773870641008,-500.0,0.00015004,2]
[408542404,1773870641018,-630.0,0.00015014,2]
[408542405,1773870641027,-1000.0,0.00015021,2]
[408542406,1773870641036,-1000.0,0.00015021,2]
[408542407,1773870641045,-1000.0,0.00015021,2]
[408542408,1773870641055,-1000.0,0.00015021,2]
[408542409,1773870641064,-1146.71316951,0.00015021,2]
[408542410,1773870641073,-343.43130894,0.00015021,2]
[408542411,1773870641082,-6757.10124707,0.00015052,2]
[408542412,1773870641092,-16496.30490937,0.00015052,2]
[408542413,1773870641101,-500.0,0.00015059,2]
[408542414,1773870641110,-1680.0,0.00015067,2]
[408542415,1773870641119,-3001.37,0.00015068,2]
[408542416,1773870641128,-600.2919257,0.00015114,2]
[408542417,1773870641137,-451.10107922,0.00015137,2]
[408542418,1773870641146,-2000.0,0.000152,2]
[408542419,1773870641155,-6757.10124707,0.00015221,2]
[408542420,1773870641165,-16496.30490937,0.00015221,2]
[408542421,1773870641174,-2924.2307,0.00015252,2]
[408542422,1773870641183,-5834.00397901,0.00015273,2]
[408542423,1773870641194,-184.95305946,0.00015273,2]
[408542424,1773870641205,-422.91193653,0.00015273,2]
[408542425,1773870641214,-1169.39605018,0.00015273,2]
[408542426,1773870641224,-574.58268553,0.00015342,2]
[408542427,1773870641233,-350.0,0.00015345,2]
[408542428,1773870641243,-617787.06038066,0.00015352,2]
[408542429,1773870641255,-3829.97459628,0.00015352,2]
[408542430,1773870641296,-73349.05107162,0.00015352,2]
[408542440,1773870643215,-748.35620737,0.00014373,2]
[408542441,1773870643224,-2105.20961112,0.00015352,2]
[408542521,1773870646311,-500.0,0.00014894,2]
[408542522,1773870646323,-130291.58787025,0.00015352,2]
[408542523,1773870646336,-466500.0,0.00015352,2]
[408542524,1773870646626,-608.00046403,0.00015168,2]
[408542525,1773870646637,-713.64953677,0.00015352,2]